Workbook

Sheet +NZD
AH2: Pair | AI2: BUY | AJ2: SELL
B3: AUDCAD | C3: AUDJPY | D3: AUDNZD | E3: AUDUSD | F3: CADCHF | G3: CADJPY | H3: CHFJPY | I3: EURAUD | J3: EURCAD | K3: EURCHF | L3: EURGBP | M3: EURJPY | N3: GBPCAD | O3: GBPAUD | P3: GBPNZD | Q3: GBPCHF | R3: GBPJPY | S3: GBPUSD | T3: NZDJPY | U3: NZDUSD | V3: USDCAD | W3: USDCHF | X3: USDJPY | Y3: AUDCHF | Z3: EURUSD | AA3: EURNZD | AB3: NZDCAD | AC3: NZDCHF | AH3: AUDCAD | AI3: =HLOOKUP(LEFT(AH3,3),$C$17:$J$18,2,FALSE) -> 4.428571429 | AJ3: =HLOOKUP(RIGHT(AH3,3),$C$17:$J$18,2,FALSE) -> 6.142857143
A4: High | B4: =[1]!AUDCAD -> 1.0166 | C4: =[1]!AUDJPY -> 102.07 | D4: =[1]!AUDNZD -> 1.207 | E4: =[1]!AUDUSD -> 1.0097 | F4: =[1]!CADCHF -> 0.9512 | G4: =[1]!CADJPY -> 100.93 | H4: =[1]!CHFJPY -> 106.58 | I4: =[1]!EURAUD -> 1.3013 | J4: =[1]!EURCAD -> 1.3183 | K4: =[1]!EURCHF -> 1.2459 | L4: =[1]!EURGBP -> 0.8462 | M4: =[1]!EURJPY -> 132.27 | N4: =[1]!GBPCAD -> 1.5601 | O4: =[1]!GBPAUD -> 1.5412 | P4: =[1]!GBPNZD -> 1.8581 | Q4: =[1]!GBPCHF -> 1.4768 | R4: =[1]!GBPJPY -> 156.66 | S4: =[1]!GBPUSD -> 1.5458 | T4: =[1]!NZDJPY -> 84.76 | U4: =[1]!NZDUSD -> 0.842 | V4: =[1]!USDCAD -> 1.0152 | W4: =[1]!USDCHF -> 0.9628 | X4: =[1]!USDJPY -> 101.99 | Y4: =[1]!AUDCHF -> 0.9607 | Z4: =[1]!EURUSD -> 1.3051 | AA4: =[1]!EURNZD -> 1.5683 | AB4: =[1]!NZDCAD -> 0.8466 | AC4: =[1]!NZDCHF -> 0.7978 | AH4: AUDJPY | AI4: =HLOOKUP(LEFT(AH4,3),$C$17:$J$18,2,FALSE) -> 4.428571429 | AJ4: =HLOOKUP(RIGHT(AH4,3),$C$17:$J$18,2,FALSE) -> 3.857142857
A5: Ask | B5: =[2]!AUDCAD -> 1.0131 | C5: =[2]!AUDJPY -> 101.89 | D5: =[2]!AUDNZD -> 1.2089 | E5: =[2]!AUDUSD -> 1.0028 | F5: =[2]!CADCHF -> 0.9478 | G5: =[2]!CADJPY -> 100.64 | H5: =[2]!CHFJPY -> 106.2 | I5: =[2]!EURAUD -> 1.2966 | J5: =[2]!EURCAD -> 1.3127 | K5: =[2]!EURCHF -> 1.2435 | L5: =[2]!EURGBP -> 0.8457 | M5: =[2]!EURJPY -> 132.01 | N5: =[2]!GBPCAD -> 1.5526 | O5: =[2]!GBPAUD -> 1.5339 | P5: =[2]!GBPNZD -> 1.8523 | Q5: =[2]!GBPCHF -> 1.4708 | R5: =[2]!GBPJPY -> 156.12 | S5: =[2]!GBPUSD -> 1.5367 | T5: =[2]!NZDJPY -> 84.43 | U5: =[2]!NZDUSD -> 0.8304 | V5: =[2]!USDCAD -> 1.0103 | W5: =[2]!USDCHF -> 0.9572 | X5: =[2]!USDJPY -> 101.63 | Y5: =[2]!AUDCHF -> 0.9601 | Z5: =[2]!EURUSD -> 1.2992 | AA5: =[2]!EURNZD -> 1.566 | AB5: =[2]!NZDCAD -> 0.8393 | AC5: =[2]!NZDCHF -> 0.7954 | AE5: 0 | AF5: 0 | AH5: AUDNZD | AI5: 4.428571429 | AJ5: 1.857142857
A6: Bid | B6: =[3]!AUDCAD -> 1.0122 | C6: =[3]!AUDJPY -> 101.85 | D6: =[3]!AUDNZD -> 1.206 | E6: =[3]!AUDUSD -> 1.0025 | F6: =[3]!CADCHF -> 0.9471 | G6: =[3]!CADJPY -> 100.55 | H6: =[3]!CHFJPY -> 106.15 | I6: =[3]!EURAUD -> 1.2955 | J6: =[3]!EURCAD -> 1.3118 | K6: =[3]!EURCHF -> 1.2431 | L6: =[3]!EURGBP -> 0.8454 | M6: =[3]!EURJPY -> 131.98 | N6: =[3]!GBPCAD -> 1.5512 | O6: =[3]!GBPAUD -> 1.532 | P6: =[3]!GBPNZD -> 1.8489 | Q6: =[3]!GBPCHF -> 1.4701 | R6: =[3]!GBPJPY -> 156.05 | S6: =[3]!GBPUSD -> 1.5364 | T6: =[3]!NZDJPY -> 84.29 | U6: =[3]!NZDUSD -> 0.8301 | V6: =[3]!USDCAD -> 1.01 | W6: =[3]!USDCHF -> 0.9569 | X6: =[3]!USDJPY -> 101.6 | Y6: =[3]!AUDCHF -> 0.9587 | Z6: =[3]!EURUSD -> 1.2989 | AA6: =[3]!EURNZD -> 1.5636 | AB6: =[3]!NZDCAD -> 0.8379 | AC6: =[3]!NZDCHF -> 0.7935 | AE6: 3 | AF6: 1 | AH6: AUDUSD | AI6: 4.428571429 | AJ6: 5.142857143
A7: Low | B7: =[4]!AUDCAD -> 1.0074 | C7: =[4]!AUDJPY -> 101.28 | D7: =[4]!AUDNZD -> 1.1977 | E7: =[4]!AUDUSD -> 0.996 | F7: =[4]!CADCHF -> 0.9397 | G7: =[4]!CADJPY -> 99.85 | H7: =[4]!CHFJPY -> 105.73 | I7: =[4]!EURAUD -> 1.2907 | J7: =[4]!EURCAD -> 1.3075 | K7: =[4]!EURCHF -> 1.236 | L7: =[4]!EURGBP -> 0.8429 | M7: =[4]!EURJPY -> 131.06 | N7: =[4]!GBPCAD -> 1.5483 | O7: =[4]!GBPAUD -> 1.5288 | P7: =[4]!GBPNZD -> 1.8338 | Q7: =[4]!GBPCHF -> 1.4634 | R7: =[4]!GBPJPY -> 155.3 | S7: =[4]!GBPUSD -> 1.5313 | T7: =[4]!NZDJPY -> 83.93 | U7: =[4]!NZDUSD -> 0.8258 | V7: =[4]!USDCAD -> 1.0061 | W7: =[4]!USDCHF -> 0.9475 | X7: =[4]!USDJPY -> 100.53 | Y7: =[4]!AUDCHF -> 0.9538 | Z7: =[4]!EURUSD -> 1.2934 | AA7: =[4]!EURNZD -> 1.5475 | AB7: =[4]!NZDCAD -> 0.8356 | AC7: =[4]!NZDCHF -> 0.7903 | AE7: 10 | AF7: 2 | AH7: CADCHF | AI7: 6.142857143 | AJ7: 3.714285714
AE8: 25 | AF8: 3 | AH8: CADJPY | AI8: 6.142857143 | AJ8: 3.857142857
A9: PIP Range | B9: =($B4:$AC4-$B7:$AC7)*100000 -> 920 | C9: =($B4:$AC4-$B7:$AC7)*1000 -> 790 | D9: =($B4:$AC4-$B7:$AC7)*100000 -> 930 | E9: 1370 | F9: 1150 | G9: =($B4:$AC4-$B7:$AC7)*1000 -> 1080 | H9: =($B4:$AC4-$B7:$AC7)*1000 -> 850 | I9: =($B4:$AC4-$B7:$AC7)*100000 -> 1060 | J9: 1080 | K9: 990 | L9: 330 | M9: =($B4:$AC4-$B7:$AC7)*1000 -> 1210 | N9: 1180 | O9: 1240 | P9: 2430 | Q9: 1340 | R9: =($B4:$AC4-$B7:$AC7)*1000 -> 1360 | S9: 1450 | T9: =($B4:$AC4-$B7:$AC7)*1000 -> 830 | U9: 1620 | V9: 910 | W9: 1530 | X9: =($B4:$AC4-$B7:$AC7)*1000 -> 1460 | Y9: 690 | Z9: 1170 | AA9: 2080 | AB9: 1100 | AC9: =($B4:$AC4-$B7:$AC7)*100000 -> 750 | AE9: 40 | AF9: 4 | AH9: CHFJPY | AI9: 3.714285714 | AJ9: 3.857142857
A10: Bid Ratio | B10: =($B6:$AC6-$B7:$AC7)/$B22:$AC22*100000 -> 0.2920891131 | C10: =($B6:$AC6-$B7:$AC7)/$B22:$AC22*1000 -> 0.4287179487 | D10: =($B6:$AC6-$B7:$AC7)/$B22:$AC22*100000 -> 0.4471450953 | E10: 0.4450240106 | F10: 0.6019386806 | G10: =($B6:$AC6-$B7:$AC7)/$B22:$AC22*1000 -> 0.5577833824 | H10: =($B6:$AC6-$B7:$AC7)/$B22:$AC22*1000 -> 0.2835308953 | I10: 0.4218915511 | J10: 0.3817073637 | K10: 0.6161933968 | L10: 0.1714847084 | M10: =($B6:$AC6-$B7:$AC7)/$B22:$AC22*1000 -> 0.9521619728 | N10: 0.270302075 | O10: 0.136532029 | P10: 1.818454915 | Q10: 0.7608003745 | R10: =($B6:$AC6-$B7:$AC7)/$B22:$AC22*1000 -> 0.9259142497 | S10: 0.4436929191 | T10: =($B6:$AC6-$B7:$AC7)/$B22:$AC22*1000 -> 0.2122320303 | U10: 0.2311386246 | V10: 0.184639841 | W10: 0.6252657725 | X10: =($B6:$AC6-$B7:$AC7)/$B22:$AC22*1000 -> 0.6753278689 | Y10: 0.404688308 | Z10: 0.4700854701 | AA10: 1.619372031 | AB10: 0.1242768161 | AC10: 0.2061390704 | AE10: 50 | AF10: 5 | AH10: EURAUD | AI10: 5.142857143 | AJ10: 4.428571429
AE11: 60 | AF11: 6 | AH11: EURCAD | AI11: 5.142857143 | AJ11: 6.142857143
A12: Relative | B12: =LEFT(B3,3) -> AUD | C12: =LEFT(C3,3) -> AUD | D12: AUD | E12: AUD | F12: =LEFT(F3,3) -> CAD | G12: CAD | H12: CHF | I12: EUR | J12: EUR | K12: EUR | L12: EUR | M12: EUR | N12: GBP | O12: GBP | P12: GBP | Q12: GBP | R12: GBP | S12: GBP | T12: NZD | U12: NZD | V12: USD | W12: USD | X12: USD | Y12: =LEFT(Y3,3) -> AUD | Z12: =LEFT(Z3,3) -> EUR | AA12: =LEFT(AA3,3) -> EUR | AB12: =LEFT(AB3,3) -> NZD | AC12: =LEFT(AC3,3) -> NZD | AE12: 75 | AF12: 7 | AH12: EURCHF | AI12: 5.142857143 | AJ12: 3.714285714
A13: Strength | B13: =LOOKUP(100*B10,$AE5:$AE14,$AF5:$AF14) -> 3 | C13: =LOOKUP(100*C10,$AE5:$AE14,$AF5:$AF14) -> 4 | D13: 4 | E13: 4 | F13: =LOOKUP(100*F10,$AE5:$AE14,$AF5:$AF14) -> 6 | G13: 5 | H13: 3 | I13: 4 | J13: 3 | K13: 6 | L13: 2 | M13: 8 | N13: 3 | O13: 2 | P13: 9 | Q13: 7 | R13: 8 | S13: 4 | T13: 2 | U13: 2 | V13: 2 | W13: 6 | X13: 6 | Y13: =LOOKUP(100*Y10,$AE5:$AE14,$AF5:$AF14) -> 4 | Z13: =LOOKUP(100*Z10,$AE5:$AE14,$AF5:$AF14) -> 4 | AA13: =LOOKUP(100*AA10,$AE5:$AE14,$AF5:$AF14) -> 9 | AB13: =LOOKUP(100*AB10,$AE5:$AE14,$AF5:$AF14) -> 2 | AC13: =LOOKUP(100*AC10,$AE5:$AE14,$AF5:$AF14) -> 2 | AE13: 90 | AF13: 8 | AH13: EURGBP | AI13: 5.142857143 | AJ13: 5.714285714
B14: =RIGHT(B3,3) -> CAD | C14: =RIGHT(C3,3) -> JPY | D14: NZD | E14: USD | F14: =RIGHT(F3,3) -> CHF | G14: JPY | H14: JPY | I14: AUD | J14: CAD | K14: CHF | L14: GBP | M14: JPY | N14: CAD | O14: AUD | P14: NZD | Q14: CHF | R14: JPY | S14: USD | T14: JPY | U14: USD | V14: CAD | W14: CHF | X14: JPY | Y14: =RIGHT(Y3,3) -> CHF | Z14: =RIGHT(Z3,3) -> USD | AA14: =RIGHT(AA3,3) -> NZD | AB14: =RIGHT(AB3,3) -> CAD | AC14: =RIGHT(AC3,3) -> CHF | AE14: 97 | AF14: 9 | AH14: EURJPY | AI14: 5.142857143 | AJ14: 3.857142857
B15: =9-B13 -> 6 | C15: =9-C13 -> 5 | D15: 5 | E15: 5 | F15: =9-F13 -> 3 | G15: 4 | H15: 6 | I15: 5 | J15: 6 | K15: 3 | L15: 7 | M15: 1 | N15: 6 | O15: 7 | P15: 0 | Q15: 2 | R15: 1 | S15: 5 | T15: 7 | U15: 7 | V15: 7 | W15: 3 | X15: 3 | Y15: =9-Y13 -> 5 | Z15: =9-Z13 -> 5 | AA15: =9-AA13 -> 0 | AB15: =9-AB13 -> 7 | AC15: =9-AC13 -> 7 | AH15: GBPCAD | AI15: 5.714285714 | AJ15: 6.142857143
AH16: GBPAUD | AI16: 5.714285714 | AJ16: 4.428571429
A17: Total Strength | C17: USD | D17: EUR | E17: GBP | F17: CHF | G17: NZD | H17: AUD | I17: JPY | J17: CAD | L17: Strong | AH17: GBPCAD | AI17: 5.714285714 | AJ17: 6.142857143
C18: =(V13+W13+X13+E15+S15+U15+Z15)/C19 -> 5.142857143 | D18: =(I13+J13+K13+L13+M13+Z13+AA13)/D19 -> 5.142857143 | E18: =(N13+O13+P13+Q13+R13+S13+L15)/E19 -> 5.714285714 | F18: =(F15+H13+K15+Q15+W15+Y15+AC15)/F19 -> 3.714285714 | G18: =(T13+U13+D15+P15+AA15+AB13+AC13)/G19 -> 1.857142857 | H18: =(B13+C13+D13+E13+I15+O15+Y13)/H19 -> 4.428571429 | I18: =(C15+G15+H15+M15+R15+T15+X15)/I19 -> 3.857142857 | J18: =(F13+G13+B15+J15+N15+V15+AB15)/J19 -> 6.142857143 | L18: Rising | AH18: GBPCHF | AI18: 5.714285714 | AJ18: 3.714285714
B19: # of evaluation points | C19: =COUNTIF($B$12:$AC$15,"=USD") -> 7 | D19: =COUNTIF($B$12:$AC$15,"=EUR") -> 7 | E19: =COUNTIF($B$12:$AC$15,"=GBP") -> 7 | F19: =COUNTIF($B$12:$AC$15,"=CHF") -> 7 | G19: =COUNTIF($B$12:$AC$15,"=NZD") -> 7 | H19: =COUNTIF($B$12:$AC$15,"=AUD") -> 7 | I19: =COUNTIF($B$12:$AC$15,"=JPY") -> 7 | J19: =COUNTIF($B$12:$AC$15,"=CAD") -> 7 | L19: Neutral | AH19: GBPJPY | AI19: 5.714285714 | AJ19: 3.857142857
L20: Weak | Z20: eurusd | AH20: GBPUSD | AI20: 5.714285714 | AJ20: 5.142857143
B21: =B9*C41*F41 -> 87902.32 | C21: =C9*C46*F46 -> 93295.84 | D21: =D9*C52*F52 -> 78666.84 | E21: =E9*C42*F42 -> 147275 | F21: =F9*C39*F39 -> 146878 | G21: =G9*C40*F40 -> 135123.12 | H21: =H9*C35*F35 -> 90096.6 | I21: =I9*C43*F43 -> 146286.36 | J21: =J9*C37*F37 -> 150530.4 | K21: =K9*C31*F31 -> 134906.31 | L21: =L9*C30*F30 -> 35541.66 | M21: =M9*C32*F32 -> 196628.63 | N21: =N9*C38*F38 -> 172691.82 | O21: =O9*C44*F44 -> 83070.08 | P21: =P9*C49*F49 -> 459483.84 | Q21: =Q9*C33*F33 -> 238912.62 | R21: =R9*C34*F34 -> 263625.12 | S21: =S9*C27*F27 -> 198070 | T21: =T9*C51*F51 -> 76828.95 | U21: =U9*C48*F48 -> 136728 | V21: =V9*C36*F36 -> 67645.76 | W21: =(W9*C28*F28) -> 159796.26 | X21: =(X9*C29*F29) -> 144684.54 | Y21: =(Y9*C45*F45) -> 89477.13 | Z21: =(Z9*C26*F26) -> 157014 | AA21: =(AA9*C47*F47) -> 328490.24 | AB21: =(AB9*C53*F53) -> 93324 | AC21: =(AC9*C50*F50) -> 75859.5 | AH21: NZDJPY | AI21: 1.857142857 | AJ21: 3.857142857
B22: =(Z21/$B21:$AC21)*$B9:$AC9 -> 1643.334101 | C22: =(Z21/$B21:$AC21)*$B9:$AC9 -> 1329.545455 | D22: =(Z21/$B21:$AC21)*$B9:$AC9 -> 1856.220741 | E22: =(Z21/$B21:$AC21)*$B9:$AC9 -> 1460.595349 | F22: =(Z21/$B21:$AC21)*$B9:$AC9 -> 1229.361102 | G22: =(Z21/$B21:$AC21)*$B9:$AC9 -> 1254.96747 | H22: =(Z21/$B21:$AC21)*$B9:$AC9 -> 1481.32005 | I22: =(Z21/$B21:$AC21)*$B9:$AC9 -> 1137.733142 | J22: =(Z21/$B21:$AC21)*$B9:$AC9 -> 1126.517434 | K22: =(Z21/$B21:$AC21)*$B9:$AC9 -> 1152.235652 | L22: =(Z21/$B21:$AC21)*$B9:$AC9 -> 1457.855936 | M22: =(Z21/$B21:$AC21)*$B9:$AC9 -> 966.2221621 | N22: =(Z21/$B21:$AC21)*$B9:$AC9 -> 1072.873747 | O22: =(Z21/$B21:$AC21)*$B9:$AC9 -> 2343.772391 | P22: =(Z21/$B21:$AC21)*$B9:$AC9 -> 830.375275 | Q22: =(Z21/$B21:$AC21)*$B9:$AC9 -> 880.6515118 | R22: =(Z21/$B21:$AC21)*$B9:$AC9 -> 810.0102145 | S22: =(Z21/$B21:$AC21)*$B9:$AC9 -> 1149.443631 | T22: =(Z21/$B21:$AC21)*$B9:$AC9 -> 1696.256684 | U22: =(Z21/$B21:$AC21)*$B9:$AC9 -> 1860.35545 | V22: =(Z21/$B21:$AC21)*$B9:$AC9 -> 2112.220189 | W22: =(Z21/$B21:$AC21)*$B9:$AC9 -> 1503.360717 | X22: =(Z21/$B21:$AC21)*$B9:$AC9 -> 1584.415584 | Y22: =(Z21/$B21:$AC21)*$B9:$AC9 -> 1210.808393 | Z22: =(Z21/$B21:$AC21)*$B9:$AC9 -> 1170 | AA22: =(Z21/$B21:$AC21)*$B9:$AC9 -> 994.2125526 | AB22: =(Z21/$B21:$AC21)*$B9:$AC9 -> 1850.707214 | AC22: =(Z21/$B21:$AC21)*$B9:$AC9 -> 1552.350068
AH24: NZDUSD | AI24: 1.857142857 | AJ24: 5.142857143
C25: pips | D25: $ | E25: % | F25: pip value | AH25: USDCAD | AI25: 5.142857143 | AJ25: 6.142857143
B26: EURUSD | C26: 134.2 | D26: 1,342.0 | E26: 0.95 | F26: 1 | AH26: USDCHF | AI26: 5.142857143 | AJ26: 3.714285714
B27: GBPUSD | C27: 136.6 | D27: 1,366.2 | E27: 0.84 | F27: 1 | AH27: USDJPY | AI27: 5.142857143 | AJ27: 3.857142857
B28: USDCHF | C28: 101.4 | D28: 1,125.8 | E28: 1.12 | F28: 1.03
B29: USDJPY | C29: 81.9 | D29: 1,016.3 | E29: 1.01 | F29: 1.21
B30: EURGBP | C30: 68.6 | D30: 1,113.5 | E30: 0.79 | F30: 1.57
B31: EURCHF | C31: 132.3 | D31: 1,469.1 | E31: 1.03 | F31: 1.03
B32: EURJPY | C32: 134.3 | D32: 1,666.7 | E32: 1.17 | F32: 1.21
B33: GBPCHF | C33: 173.1 | D33: 1,921.8 | E33: 1.18 | F33: 1.03
B34: GBPJPY | C34: 160.2 | D34: 1,987.3 | E34: 1.21 | F34: 1.21
B35: CHFJPY | C35: 87.6 | D35: 1,087.0 | E35: 0.98 | F35: 1.21
B36: USDCAD | C36: 73.6 | D36: 748 | E36: 0.75 | F36: 1.01
B37: EURCAD | C37: 138 | D37: 1,402.6 | E37: 1 | F37: 1.01
B38: GBPCAD | C38: 144.9 | D38: 1,472.3 | E38: 0.91 | F38: 1.01
B39: CADCHF | C39: 124 | D39: 1,376.3 | E39: 1.34 | F39: 1.03
B40: CADJPY | C40: 103.4 | D40: 1,282.5 | E40: 1.25 | F40: 1.21
B41: AUDCAD | C41: 94.6 | D41: 961.9 | E41: 0.96 | F41: 1.01
B42: AUDUSD | C42: 107.5 | D42: 1,074.8 | E42: 1.07 | F42: 1
B43: EURAUD | C43: 139.4 | D43: 1,388.0 | E43: 0.99 | F43: 0.99
B44: AUDGBP | C44: 63.2 | D44: 1,025.9 | E44: 1.02 | F44: 1.06
B45: AUDCHF | C45: 125.9 | D45: 1,398.0 | E45: 1.38 | F45: 1.03
B46: AUDJPY | C46: 97.6 | D46: 1,211.3 | E46: 1.2 | F46: 1.21
B47: EURNZD | C47: 207.8 | D47: 1,517.4 | E47: 1.08 | F47: 0.76
B48: NZDUSD | C48: 84.4 | D48: 844.2 | E48: 1.15 | F48: 1
B49: GBPNZD | C49: 248.8 | D49: 1,816.6 | E49: 1.13 | F49: 0.76
B50: NZDCHF | C50: 98.2 | D50: 1,090.5 | E50: 1.48 | F50: 1.03
B51: NZDJPY | C51: 76.5 | D51: 949.2 | E51: 1.28 | F51: 1.21
B52: AUDNZD | C52: 111.3 | D52: 812.5 | E52: 0.81 | F52: 0.76
B53: NZDCAD | C53: 84 | D53: 853.5 | E53: 1.17 | F53: 1.01

Sheet List1 (hidden)

Sheet Poriadok
A2: 29/2/2012 | C2: aud | D2: CADAUD | E2: JPYAUD | F2: NZDAUD | G2: USDAUD | H2: EURAUD | I2: GBPAUD | J2: CHFAUD | N2: cad | O2: AUDCAD | P2: CHFCAD | Q2: JPYCAD | R2: EURCAD | S2: GBPCAD | T2: USDCAD | U2: NZDCAD
A3: 20:00:00 | D3: =0.9676 -> 0.9676 | E3: =0.98723 -> 0.98723 | F3: =0.7856 -> 0.7856 | G3: =0.9624 -> 0.9624 | H3: 1.2801 | I3: 1.5128 | J3: =1.044 -> 1.044 | O3: 1.0146 | P3: =1.0986 -> 1.0986 | Q3: =1.03649 -> 1.03649 | R3: 1.3325 | S3: 1.5429 | T3: 1.0255 | U3: 0.8546
I4: \
C5: eur | D5: AUDEUR | E5: CADEUR | F5: CHFEUR | G5: GBPEUR | H5: JPYEUR | I5: USDEUR | J5: NZDEUR | N5: gbp | O5: EURGBP | P5: CADGBP | Q5: AUDGBP | R5: NZDGBP | S5: CHFGBP | T5: JPYGBP | U5: USDGBP
D6: =0.773 -> 0.773 | E6: =0.7378 -> 0.7378 | F6: =0.8218 -> 0.8218 | G6: 1.1405 | H6: =0.7684 -> 0.7684 | I6: =0.7434 -> 0.7434 | J6: 0.628 | O6: 0.868 | P6: =0.614 -> 0.614 | Q6: =0.6891 -> 0.6891 | R6: =0.5087 -> 0.5087 | S6: =0.6591 -> 0.6591 | T6: =0.6382 -> 0.6382 | U6: =0.6525 -> 0.6525
C8: chf | D8: CADCHF | E8: JPYCHF | F8: EURCHF | G8: GBPCHF | H8: USDCHF | I8: AUDCHF | J8: NZDCHF | N8: jpy | O8: AUDJPY | P8: CADJPY | Q8: CHFJPY | R8: EURJPY | S8: GBPJPY | T8: NZDJPY | U8: USDJPY
D9: 0.9529 | E9: =0.98 -> 0.98 | F9: 1.2471 | G9: 1.4465 | H9: 0.9469 | I9: 0.993 | J9: 0.7492 | O9: 1.0304 | P9: 0.9839 | Q9: 1.0683 | R9: 1.3087 | S9: 1.5281 | T9: 0.8619 | U9: 0.9965
C11: nzd | D11: GBPNZD | E11: JPYNZD | F11: USDNZD | G11: EURNZD | H11: CADNZD | I11: CHFNZD | J11: AUDNZD | N11: usd | O11: AUDUSD | P11: GBPUSD | Q11: NZDUSD | R11: CADUSD | S11: CHFUSD | T11: JPYUSD | U11: EURUSD
D12: 1.8542 | E12: 1.2031 | F12: =1.1907 -> 1.1907 | G12: 1.5555 | H12: 1.1863 | I12: =1.2568 -> 1.2568 | J12: 1.2085 | O12: 1.0173 | P12: 1.5302 | Q12: 0.8095 | R12: =0.9774 -> 0.9774 | S12: =1.0861 -> 1.0861 | T12: =1.037 -> 1.037 | U12: 1.3027
A16: Aktuálny kurz | B16: AUD | D16: CADAUD | E16: JPYAUD | F16: NZDAUD | G16: USDAUD | H16: EURAUD | I16: GBPAUD | J16: CHFAUD | K16: pv | M16: CAD | O16: AUDCAD | P16: CHFCAD | Q16: JPYCAD | R16: EURCAD | S16: GBPCAD | T16: USDCAD | U16: NZDCAD | V16: pv
C17: Ask | D17: =1/[2]!AUDCAD -> 0.987069391 | E17: =1/[2]!AUDJPY*100 -> 0.981450584 | F17: =1/[2]!AUDNZD -> 0.8271982794 | G17: =1/[2]!AUDUSD -> 0.9972078181 | H17: =[2]!EURAUD -> 1.2966 | I17: =[2]!GBPAUD -> 1.5339 | J17: =1/[2]!AUDCHF -> 1.041558171 | K17: =(0.0001/G19)*10000 -> 1.002649978 | N17: Ask | O17: =[2]!AUDCAD -> 1.0131 | P17: =1/[2]!CADCHF -> 1.05507491 | Q17: =1/[2]!CADJPY*100 -> 0.9936406995 | R17: =[2]!EURCAD -> 1.3127 | S17: =[2]!GBPCAD -> 1.5526 | T17: =[2]!USDCAD -> 1.0103 | U17: =[2]!NZDCAD -> 0.8393 | V17: =(0.0001/T19)*10000 -> 0.9899519873
C18: Bid | D18: =1/[3]!AUDCAD -> 0.987947046 | E18: =1/[3]!AUDJPY*100 -> 0.9818360334 | F18: =1/[3]!AUDNZD -> 0.8291873964 | G18: =1/[3]!AUDUSD -> 0.9975062344 | H18: =[3]!EURAUD -> 1.2955 | I18: =[3]!GBPAUD -> 1.532 | J18: =1/[3]!AUDCHF -> 1.04307917 | N18: Bid | O18: =[3]!AUDCAD -> 1.0122 | P18: =1/[3]!CADCHF -> 1.055854714 | Q18: =1/[3]!CADJPY*100 -> 0.9945300845 | R18: =[3]!EURCAD -> 1.3118 | S18: =[3]!GBPCAD -> 1.5512 | T18: =[3]!USDCAD -> 1.01 | U18: =[3]!NZDCAD -> 0.8379
C19: Priemer | D19: =(D17+D18)/2 -> 0.9875082185 | E19: =(E17+E18)/2 -> 0.9816433087 | F19: 0.8281928379 | G19: 0.9973570263 | H19: 1.29605 | I19: 1.53295 | J19: 1.04231867 | N19: Priemer | O19: =(O17+O18)/2 -> 1.01265 | P19: =(P17+P18)/2 -> 1.055464812 | Q19: 0.994085392 | R19: 1.31225 | S19: 1.5519 | T19: 1.01015 | U19: 0.8386
C20: spread | D20: =ABS(D17-D18)*10000 -> 8.776550601 | E20: =ABS(E17-E18)*10000 -> 3.854494193 | F20: 19.89116924 | G20: 2.984163047 | H20: 11 | I20: 19 | J20: 15.20998685 | K20: =SUM(D20:J20) -> 80.71636393 | N20: spread | O20: =ABS(O17-O18)*10000 -> 9 | P20: =ABS(P17-P18)*10000 -> 7.798040727 | Q20: 8.89385012 | R20: 9 | S20: 14 | T20: 3 | U20: 14 | V20: =SUM(O20:U20) -> 65.69189085
B22: EUR | D22: AUDEUR | E22: CADEUR | F22: CHFEUR | G22: GBPEUR | H22: JPYEUR | I22: USDEUR | J22: NZDEUR | K22: pv | M22: GBP | O22: EURGBP | P22: CADGBP | Q22: AUDGBP | R22: NZDGBP | S22: CHFGBP | T22: JPYGBP | U22: USDGBP | V22: pv
C23: Ask | D23: =1/[2]!EURAUD -> 0.7712478791 | E23: =1/[2]!EURCAD -> 0.7617886798 | F23: =1/[2]!EURCHF -> 0.8041817451 | G23: =1/[2]!EURGBP -> 1.182452406 | H23: =1/[2]!EURJPY*100 -> 0.7575183698 | I23: =1/[2]!EURUSD -> 0.7697044335 | J23: =1/[2]!EURNZD -> 0.6385696041 | K23: =(0.0001/I25)*10000 -> 1.299049983 | N23: Ask | O23: =[2]!EURGBP -> 0.8457 | P23: =1/[2]!GBPCAD -> 0.6440808966 | Q23: =1/[2]!GBPAUD -> 0.6519329813 | R23: =1/[2]!GBPNZD -> 0.5398693516 | S23: =1/[2]!GBPCHF -> 0.6799020941 | T23: =1/[2]!GBPJPY*100 -> 0.6405329234 | U23: =1/[2]!GBPUSD -> 0.6507451031 | V23: =(0.0001/U25)*10000 -> 1.536549985
C24: Bid | D24: =1/[3]!EURAUD -> 0.7719027403 | E24: =1/[3]!EURCAD -> 0.7623113279 | F24: =1/[3]!EURCHF -> 0.8044405116 | G24: =1/[3]!EURGBP -> 1.182872013 | H24: =1/[3]!EURJPY*100 -> 0.7576905592 | I24: =1/[3]!EURUSD -> 0.769882208 | J24: =1/[3]!EURNZD -> 0.639549757 | N24: Bid | O24: =[3]!EURGBP -> 0.8454 | P24: =1/[3]!GBPCAD -> 0.644662197 | Q24: =1/[3]!GBPAUD -> 0.6527415144 | R24: =1/[3]!GBPNZD -> 0.5408621342 | S24: =1/[3]!GBPCHF -> 0.680225835 | T24: =1/[3]!GBPJPY*100 -> 0.6408202499 | U24: =1/[3]!GBPUSD -> 0.6508721687
C25: Priemer | D25: =(D23+D24)/2 -> 0.7715753097 | E25: =(E23+E24)/2 -> 0.7620500039 | F25: 0.8043111283 | G25: 1.18266221 | H25: 0.7576044645 | I25: 0.7697933208 | J25: 0.6390596805 | N25: Priemer | O25: =(O23+O24)/2 -> 0.84555 | P25: =(P23+P24)/2 -> 0.6443715468 | Q25: 0.6523372478 | R25: 0.5403657429 | S25: 0.6800639645 | T25: 0.6406765867 | U25: 0.6508086359
C26: spread | D26: =ABS(D23-D24)*10000 -> 6.548611864 | E26: =ABS(E23-E24)*10000 -> 5.226481261 | F26: 2.587665498 | G26: 4.196069575 | H26: 1.721893552 | I26: 1.777745246 | J26: 9.801528842 | K26: =SUM(D26:J26) -> 31.85999584 | N26: spread | O26: =ABS(O23-O24)*10000 -> 3 | P26: =ABS(P23-P24)*10000 -> 5.813004482 | Q26: 8.085330708 | R26: 9.927826251 | S26: 3.237408788 | T26: 2.873265276 | U26: 1.27065563 | V26: =SUM(O26:U26) -> 34.20749113
B28: CHF | D28: CADCHF | E28: JPYCHF | F28: EURCHF | G28: GBPCHF | H28: USDCHF | I28: AUDCHF | J28: NZDCHF | K28: pv | M28: JPY | O28: AUDJPY | P28: CADJPY | Q28: CHFJPY | R28: EURJPY | S28: GBPJPY | T28: NZDJPY | U28: USDJPY | V28: pv
C29: Ask | D29: =[2]!CADCHF -> 0.9478 | E29: =1/[2]!CHFJPY*100 -> 0.9416195857 | F29: =[2]!EURCHF -> 1.2435 | G29: =[2]!GBPCHF -> 1.4708 | H29: =[2]!USDCHF -> 0.9572 | I29: =[2]!AUDCHF -> 0.9601 | J29: =[2]!NZDCHF -> 0.7954 | K29: =(0.0001/H31)*10000 -> 1.044877488 | N29: Ask | O29: =[2]!AUDJPY/100 -> 1.0189 | P29: =[2]!CADJPY/100 -> 1.0064 | Q29: =[2]!CHFJPY/100 -> 1.062 | R29: =[2]!EURJPY/100 -> 1.3201 | S29: =[2]!GBPJPY/100 -> 1.5612 | T29: =[2]!NZDJPY/100 -> 0.8443 | U29: =[2]!USDJPY/100 -> 1.0163 | V29: =(0.0001/U31)*10000 -> 0.9841066772
C30: Bid | D30: =[3]!CADCHF -> 0.9471 | E30: =1/[3]!CHFJPY*100 -> 0.9420631182 | F30: =[3]!EURCHF -> 1.2431 | G30: =[3]!GBPCHF -> 1.4701 | H30: =[3]!USDCHF -> 0.9569 | I30: =[3]!AUDCHF -> 0.9587 | J30: =[3]!NZDCHF -> 0.7935 | N30: Bid | O30: =[3]!AUDJPY/100 -> 1.0185 | P30: =[3]!CADJPY/100 -> 1.0055 | Q30: =[3]!CHFJPY/100 -> 1.0615 | R30: =[3]!EURJPY/100 -> 1.3198 | S30: =[3]!GBPJPY/100 -> 1.5605 | T30: =[3]!NZDJPY/100 -> 0.8429 | U30: =[3]!USDJPY/100 -> 1.016
C31: Priemer | D31: =(D29+D30)/2 -> 0.94745 | E31: =(E29+E30)/2 -> 0.941841352 | F31: 1.2433 | G31: 1.47045 | H31: 0.95705 | I31: 0.9594 | J31: 0.79445 | N31: Priemer | O31: =(O29+O30)/2 -> 1.0187 | P31: =(P29+P30)/2 -> 1.00595 | Q31: 1.06175 | R31: 1.31995 | S31: 1.56085 | T31: 0.8436 | U31: 1.01615
C32: spread | D32: =ABS(D29-D30)*10000 -> 7 | E32: =ABS(E29-E30)*10000 -> 4.435325415 | F32: 4 | G32: 7 | H32: 3 | I32: 14 | J32: 19 | K32: =SUM(D32:J32) -> 58.43532542 | N32: spread | O32: =ABS(O29-O30)*10000 -> 4 | P32: =ABS(P29-P30)*10000 -> 9 | Q32: 5 | R32: 3 | S32: 7 | T32: 14 | U32: 3 | V32: =SUM(O32:U32) -> 45
B34: NZD | D34: GBPNZD | E34: JPYNZD | F34: USDNZD | G34: EURNZD | H34: CADNZD | I34: CHFNZD | J34: AUDNZD | K34: pv | M34: USD | O34: AUDUSD | P34: GBPUSD | Q34: NZDUSD | R34: CADUSD | S34: CHFUSD | T34: JPYUSD | U34: EURUSD | V34: pv
C35: Ask | D35: =[2]!GBPNZD -> 1.8523 | E35: =1/[2]!NZDJPY*100 -> 1.184413123 | F35: =1/[2]!NZDUSD -> 1.204238921 | G35: =[2]!EURNZD -> 1.566 | H35: =1/[2]!NZDCAD -> 1.191469081 | I35: =1/[2]!NZDCHF -> 1.257229067 | J35: =[2]!AUDNZD -> 1.2089 | K35: =(0.0001/F37)*10000 -> 0.8302499729 | N35: Ask | O35: =[2]!AUDUSD -> 1.0028 | P35: =[2]!GBPUSD -> 1.5367 | Q35: =[2]!NZDUSD -> 0.8304 | R35: =1/[2]!USDCAD -> 0.9898050084 | S35: =1/[2]!USDCHF -> 1.044713748 | T35: =1/[2]!USDJPY*100 -> 0.9839614287 | U35: =[2]!EURUSD -> 1.2992 | V35: 1
C36: Bid | D36: =[3]!GBPNZD -> 1.8489 | E36: =1/[3]!NZDJPY*100 -> 1.186380354 | F36: =1/[3]!NZDUSD -> 1.204674136 | G36: =[3]!EURNZD -> 1.5636 | H36: =1/[3]!NZDCAD -> 1.19345984 | I36: =1/[3]!NZDCHF -> 1.260239445 | J36: =[3]!AUDNZD -> 1.206 | N36: Bid | O36: =[3]!AUDUSD -> 1.0025 | P36: =[3]!GBPUSD -> 1.5364 | Q36: =[3]!NZDUSD -> 0.8301 | R36: =1/[3]!USDCAD -> 0.9900990099 | S36: =1/[3]!USDCHF -> 1.045041279 | T36: =1/[3]!USDJPY*100 -> 0.9842519685 | U36: =[3]!EURUSD -> 1.2989
C37: Priemer | D37: =(D35+D36)/2 -> 1.8506 | E37: =(E35+E36)/2 -> 1.185396738 | F37: 1.204456528 | G37: 1.5648 | H37: 1.192464461 | I37: 1.258734256 | J37: 1.20745 | N37: Priemer | O37: =(O35+O36)/2 -> 1.00265 | P37: =(P35+P36)/2 -> 1.53655 | Q37: 0.83025 | R37: 0.9899520092 | S37: 1.044877514 | T37: 0.9841066986 | U37: 1.29905
C38: spread | D38: =ABS(D35-D36)*10000 -> 34 | E38: =ABS(E35-E36)*10000 -> 19.67230244 | F38: 4.352146444 | G38: 24 | H38: 19.90758699 | I38: 30.10378359 | J38: 29 | K38: =SUM(D38:J38) -> 161.0358195 | N38: spread | O38: =ABS(O35-O36)*10000 -> 3 | P38: =ABS(P35-P36)*10000 -> 3 | Q38: 3 | R38: 2.940014876 | S38: 3.275306976 | T38: 2.905397919 | U38: 3 | V38: =SUM(O38:U38) -> 21.12071977
A41: Rozdiely | C41: aud | D41: NZDAUD | E41: GBPAUD | F41: CADAUD | G41: USDAUD | H41: CHFAUD | I41: EURAUD | J41: JPYAUD | N41: cad | O41: NZDCAD | P41: GBPCAD | Q41: CHFCAD | R41: USDCAD | S41: AUDCAD | T41: EURCAD | U41: JPYCAD
C42: =(F42+J42+D42+G42+I42+E42+H42)*W53 -> -1262.900617 | D42: =((F19-F3))*10000 -> 425.9283789 | E42: =((I19-I3))*10000 -> 201.5 | F42: =((D19-D3))*10000 -> 199.0821851 | G42: =((G19-G3))*10000 -> 349.5702626 | H42: =((J19-J3))*10000 -> -16.81329634 | I42: =((H19-H3))*10000 -> 159.5 | J42: =((E19-E3))*10000 -> -55.86691327 | N42: =(S42+Q42+U42+T42+P42+R42+O42)*W53 -> 1300.897956 | O42: =(U19-U3)*10000 -> -160 | P42: =(S19-S3)*10000 -> 90 | Q42: =(P19-P3)*10000 -> -431.3518765 | R42: =(T19-T3)*10000 -> -153.5 | S42: =(O19-O3)*10000 -> -19.5 | T42: =(R19-R3)*10000 -> -202.5 | U42: =(Q19-Q3)*10000 -> -424.0460797
C44: eur | D44: NZDEUR | E44: CADEUR | F44: CHFEUR | G44: USDEUR | H44: GBPEUR | I44: AUDEUR | J44: JPYEUR | N44: gbp | O44: NZDGBP | P44: CHFGBP | Q44: CADGBP | R44: USDGBP | S44: AUDGBP | T44: EURGBP | U44: JPYGBP
C45: =(I45+E45+F45+H45+J45+G45+D45)*W53 -> -256.5610968 | D45: =((J25-J6))*10000 -> 110.5968053 | E45: =((E6-E25))*10000 -> -242.5000388 | F45: =((F25-F6))*10000 -> -174.8887165 | G45: =((I25-I6))*10000 -> 263.9332076 | H45: =((G25-G6))*10000 -> 421.6220977 | I45: =((D25-D6))*10000 -> -14.24690338 | J45: =((H25-H6))*10000 -> -107.955355 | N45: =(T45+Q45+S45+O45+P45+U45+R45)*W53 -> -245.7372466 | O45: =(R25-R6)*10000 -> 316.6574293 | P45: =(S25-S6)*10000 -> 209.6396454 | Q45: =(P25-P6)*10000 -> 303.7154678 | R45: =(U25-U6)*10000 -> -16.91364075 | S45: =(Q25-Q6)*10000 -> -367.6275218 | T45: =(O25-O6)*10000 -> -224.5 | U45: =(T25-T6)*10000 -> 24.76586656
C47: chf | D47: NZDCHF | E47: CADCHF | F47: GBPCHF | G47: USDCHF | H47: EURCHF | I47: AUDCHF | J47: JPYCHF | N47: jpy | O47: GBPJPY | P47: CADJPY | Q47: CHFJPY | R47: USDJPY | S47: AUDJPY | T47: NZDJPY | U47: EURJPY
C48: =(E48+J48+H48+F48+G48+I48+D48)*W53 -> -92.41351958 | D48: =(J31-J9)*10000 -> 452.5 | E48: =(D9-D31)*10000 -> 54.5 | F48: =(G31-G9)*10000 -> 239.5 | G48: =(H31-H9)*10000 -> 101.5 | H48: =(F31-F9)*10000 -> -38 | I48: =(I31-I9)*10000 -> -336 | J48: =(E31-E9)*10000 -> -381.5864804 | N48: =(S48+P48+Q48+U48+O48+T48+R48)*W53 -> -491.5 | O48: =(S31-S9)*10000 -> 327.5 | P48: =(P31-P9)*10000 -> 220.5 | Q48: -65.5 | R48: =(U31-U9)*10000 -> 196.5 | S48: =(O31-O9)*10000 -> -117 | T48: -183 | U48: =(R31-R9)*10000 -> 112.5
C50: nzd | D50: GBPNZD | E50: CADNZD | F50: CHFNZD | G50: USDNZD | H50: EURNZD | I50: AUDNZD | J50: JPYNZD | N50: usd | O50: NZDUSD | P50: CHFUSD | Q50: GBPUSD | R50: AUDUSD | S50: CADUSD | T50: EURUSD | U50: JPYUSD
C51: =(D51+J51+G51+H51+E51+F51+I51)*W53 -> -88.01983786 | D51: =(D37-D12)*10000 -> -36 | E51: =(H37-H12)*10000 -> 61.64460727 | F51: =(I37-I12)*10000 -> 19.34256315 | G51: =(F37-F12)*10000 -> 137.5652832 | H51: =(G37-G12)*10000 -> 93 | I51: =(J37-J12)*10000 -> -10.5 | J51: =(E37-E12)*10000 -> -177.0326158 | N51: =(R51+Q51+O51+S51+P51+U51+T51)*W53 -> 727.6377845 | O51: =(Q37-Q12)*10000 -> 207.5 | P51: =(S37-S12)*10000 -> -412.2248622 | Q51: =(P37-P12)*10000 -> 63.5 | R51: =(O37-O12)*10000 -> -146.5 | S51: =(R37-R12)*10000 -> 125.5200916 | T51: =(U37-U12)*10000 -> -36.5 | U51: =(T37-T12)*10000 -> -528.9330139
W53: =-1 -> -1
W54: 1
C55: aud | D55: eur | E55: chf | F55: nzd | G55: cad | H55: gbp | I55: jpy | J55: usd | K55: AVG | L55: SUM | N55: aud | O55: eur | P55: chf | Q55: nzd | R55: cad | S55: gbp | T55: jpy | U55: usd
C56: =C42*K17 -> -1266.247275 | D56: =C45*K23 -> -333.2856884 | E56: =C48*K29 -> -96.56080621 | F56: =C51*K35 -> -73.078468 | G56: =N42*V17 -> 1287.826517 | H56: =N45*V23 -> -377.5875626 | I56: =N48*V29 -> -483.6884318 | J56: =N51*V35 -> 727.6377845 | K56: =(C56+D56+E56+F56+G56+H56+I56+J56)/8 -> -76.87299135 | L56: =SUM(C56:J56) -> -614.9839308 | N56: =ABS(C56) -> 1266.247275 | O56: 333.2856884 | P56: 96.56080621 | Q56: 73.078468 | R56: 1287.826517 | S56: 377.5875626 | T56: 483.6884318 | U56: 727.6377845 | V56: =SUM(N56:U56) -> 4645.912534
B57: MAX | C57: 0.2452604868 | D57: -0.1671617282 | E57: -0.1772018866 | F57: 0.003233203288 | G57: 0.1257911469 | H57: 0.1230044498 | I57: 0.2458640773 | J57: 0.125001417 | N57: =N56/$V$56 -> 0.272550821 | O57: =O56/$V$56 -> 0.07173740056 | P57: 0.02078403446 | Q57: 0.0157296263 | R57: 0.277195601 | S57: 0.08127306743 | T57: 0.1041105334 | U57: 0.1566189159
B58: MIN | C58: 0.01039161848 | D58: -0.2513482416 | E58: -0.2341670137 | F58: -0.03898927849 | G58: 0.0428435167 | H58: 0.02579608793 | I58: 0.06532584088 | J58: -0.164919241 | N58: =(N57/25)*100 -> 1.090203284 | O58: =(O57/25)*100 -> 0.2869496022 | P58: 0.08313613784 | Q58: 0.06291850521 | R58: 1.108782404 | S58: 0.3250922697 | T58: 0.4164421334 | U58: 0.6264756637
C59: =IF(C56<0,N57*$W$53,N57*$W$54) -> -0.272550821 | D59: -0.07173740056 | E59: -0.02078403446 | F59: -0.0157296263 | G59: 0.277195601 | H59: -0.08127306743 | I59: -0.1041105334 | J59: 0.1566189159 | K59: =(C59+D59+E59+F59+G59+H59+I59+J59)/8 -> -0.01654637077
C60: =IF(C56<0,N58*$W$53,N58*$W$54) -> -1.090203284 | D60: -0.2869496022 | E60: -0.08313613784 | F60: -0.06291850521 | G60: 1.108782404 | H60: -0.3250922697 | I60: -0.4164421334 | J60: 0.6264756637
B278: AUDCAD | C278: AUDJPY | D278: AUDNZD | E278: AUDUSD | F278: CADCHF | G278: CADJPY | H278: CHFJPY | I278: EURAUD | J278: EURCAD | K278: EURCHF | L278: EURGBP | M278: EURJPY | N278: GBPCAD | O278: GBPAUD | P278: GBPNZD | Q278: GBPCHF | R278: GBPJPY | S278: GBPUSD | T278: NZDJPY | U278: NZDUSD | V278: USDCAD | W278: USDCHF | X278: USDJPY | Y278: AUDCHF | Z278: EURUSD | AA278: EURNZD | AB278: NZDCAD | AC278: NZDCHF
B279: =C56 -> -1266.247275 | C279: =C56 -> -1266.247275 | D279: =C56 -> -1266.247275 | E279: =C56 -> -1266.247275 | F279: =E56 -> -96.56080621 | G279: =G56 -> 1287.826517 | H279: =E56 -> -96.56080621 | I279: =C56 -> -1266.247275 | J279: =G56 -> 1287.826517 | K279: =E56 -> -96.56080621 | L279: =H56 -> -377.5875626 | M279: =I56 -> -483.6884318 | N279: =G56 -> 1287.826517 | O279: =C56 -> -1266.247275 | P279: =H56 -> -377.5875626 | Q279: =E56 -> -96.56080621 | R279: =I56 -> -483.6884318 | S279: =J56 -> 727.6377845 | T279: =I56 -> -483.6884318 | U279: =J56 -> 727.6377845 | V279: =G56 -> 1287.826517 | W279: =E56 -> -96.56080621 | X279: =I56 -> -483.6884318 | Y279: =C56 -> -1266.247275 | Z279: =J56 -> 727.6377845 | AA279: =F56 -> -73.078468 | AB279: =F56 -> -73.078468 | AC279: =E56 -> -96.56080621
B280: =G56 -> 1287.826517 | C280: =I56 -> -483.6884318 | D280: =F56 -> -73.078468 | E280: =J56 -> 727.6377845 | F280: =G56 -> 1287.826517 | G280: =I56 -> -483.6884318 | H280: =I56 -> -483.6884318 | I280: =D56 -> -333.2856884 | J280: =D56 -> -333.2856884 | K280: =D56 -> -333.2856884 | L280: =D56 -> -333.2856884 | M280: =D56 -> -333.2856884 | N280: =H56 -> -377.5875626 | O280: =H56 -> -377.5875626 | P280: =F56 -> -73.078468 | Q280: =H56 -> -377.5875626 | R280: =H56 -> -377.5875626 | S280: =H56 -> -377.5875626 | T280: =F56 -> -73.078468 | U280: =F56 -> -73.078468 | V280: =J56 -> 727.6377845 | W280: =J56 -> 727.6377845 | X280: =J56 -> 727.6377845 | Y280: =E56 -> -96.56080621 | Z280: =D56 -> -333.2856884 | AA280: =D56 -> -333.2856884 | AB280: =G56 -> 1287.826517 | AC280: =F56 -> -73.078468
B281: =ABS(B279)/(ABS(B279)+ABS(B280)) -> 0.495775525 | C281: =ABS(C279)/(ABS(C279)+ABS(C280)) -> 0.7235964557 | D281: 0.9454363747 | E281: 0.6350653309 | F281: 0.06974984861 | G281: 0.7269633925 | H281: 0.1664126377 | I281: 0.7916356237 | J281: 0.7944092412 | K281: 0.2246402086 | L281: 0.5311601781 | M281: 0.5920486584 | N281: 0.7732770683 | O281: 0.7703007906 | P281: 0.8378434072 | Q281: 0.2036510353 | R281: 0.5615951622 | S281: 0.6583614703 | T281: 0.8687449487 | U281: 0.9087336272 | V281: 0.6389726258 | W281: 0.1171572086 | X281: 0.3993048489 | Y281: 0.9291457047 | Z281: 0.6858532242 | AA281: 0.179834926 | AB281: 0.05369843509 | AC281: 0.5692125639
B282: =ABS(B280)/(ABS(B279)+ABS(B280)) -> 0.504224475 | C282: =ABS(C280)/(ABS(C279)+ABS(C280)) -> 0.2764035443 | D282: 0.05456362529 | E282: 0.3649346691 | F282: 0.9302501514 | G282: 0.2730366075 | H282: 0.8335873623 | I282: 0.2083643763 | J282: 0.2055907588 | K282: 0.7753597914 | L282: 0.4688398219 | M282: 0.4079513416 | N282: 0.2267229317 | O282: 0.2296992094 | P282: 0.1621565928 | Q282: 0.7963489647 | R282: 0.4384048378 | S282: 0.3416385297 | T282: 0.1312550513 | U282: 0.09126637278 | V282: 0.3610273742 | W282: 0.8828427914 | X282: 0.6006951511 | Y282: 0.07085429527 | Z282: 0.3141467758 | AA282: 0.820165074 | AB282: 0.9463015649 | AC282: 0.4307874361
B283: =IF($C$56<0,B281*$W$53,B281*$W$54) -> -0.495775525 | C283: =IF($C$56<0,C281*$W$53,C281*$W$54) -> -0.7235964557 | D283: =IF($C$56<0,D281*$W$53,D281*$W$54) -> -0.9454363747 | E283: =IF($C$56<0,E281*$W$53,E281*$W$54) -> -0.6350653309 | F283: =IF($E$56<0,F281*$W$53,F281*$W$54) -> -0.06974984861 | G283: =IF($G$56<0,G281*$W$53,G281*$W$54) -> 0.7269633925 | H283: =IF($E$56<0,H281*$W$53,H281*$W$54) -> -0.1664126377 | I283: =IF($C$56<0,I281*$W$53,I281*$W$54) -> -0.7916356237 | J283: =IF($G$56<0,J281*$W$53,J281*$W$54) -> 0.7944092412 | K283: =IF($E$56<0,K281*$W$53,K281*$W$54) -> -0.2246402086 | L283: =IF($H$56<0,L281*$W$53,L281*$W$54) -> -0.5311601781 | M283: =IF($I$56<0,M281*$W$53,M281*$W$54) -> -0.5920486584 | N283: =IF($G$56<0,N281*$W$53,N281*$W$54) -> 0.7732770683 | O283: =IF($C$56<0,O281*$W$53,O281*$W$54) -> -0.7703007906 | P283: =IF($H$56<0,P281*$W$53,P281*$W$54) -> -0.8378434072 | Q283: =IF($E$56<0,Q281*$W$53,Q281*$W$54) -> -0.2036510353 | R283: =IF($I$56<0,R281*$W$53,R281*$W$54) -> -0.5615951622 | S283: =IF($J$56<0,S281*$W$53,S281*$W$54) -> 0.6583614703 | T283: =IF($I$56<0,T281*$W$53,T281*$W$54) -> -0.8687449487 | U283: =IF($J$56<0,U281*$W$53,U281*$W$54) -> 0.9087336272 | V283: =IF($G$56<0,V281*$W$53,V281*$W$54) -> 0.6389726258 | W283: =IF($E$56<0,W281*$W$53,W281*$W$54) -> -0.1171572086 | X283: =IF($I$56<0,X281*$W$53,X281*$W$54) -> -0.3993048489 | Y283: =IF($C$56<0,Y281*$W$53,Y281*$W$54) -> -0.9291457047 | Z283: =IF($J$56<0,Z281*$W$53,Z281*$W$54) -> 0.6858532242 | AA283: =IF($F$56<0,AA281*$W$53,AA281*$W$54) -> -0.179834926 | AB283: =IF($F$56<0,AB281*$W$53,AB281*$W$54) -> -0.05369843509 | AC283: =IF($E$56<0,AC281*$W$53,AC281*$W$54) -> -0.5692125639
B284: =IF($G$56<0,B282*$W$53,B282*$W$54) -> 0.504224475 | C284: =IF($I$56<0,C282*$W$53,C282*$W$54) -> -0.2764035443 | D284: =IF($F$56<0,D282*$W$53,D282*$W$54) -> -0.05456362529 | E284: =IF($J$56<0,E282*$W$53,E282*$W$54) -> 0.3649346691 | F284: =IF($G$56<0,F282*$W$53,F282*$W$54) -> 0.9302501514 | G284: =IF($I$56<0,G282*$W$53,G282*$W$54) -> -0.2730366075 | H284: =IF($I$56<0,H282*$W$53,H282*$W$54) -> -0.8335873623 | I284: =IF($D$56<0,I282*$W$53,I282*$W$54) -> -0.2083643763 | J284: =IF($D$56<0,J282*$W$53,J282*$W$54) -> -0.2055907588 | K284: =IF($D$56<0,K282*$W$53,K282*$W$54) -> -0.7753597914 | L284: =IF($D$56<0,L282*$W$53,L282*$W$54) -> -0.4688398219 | M284: =IF($D$56<0,M282*$W$53,M282*$W$54) -> -0.4079513416 | N284: =IF($H$56<0,N282*$W$53,N282*$W$54) -> -0.2267229317 | O284: =IF($H$56<0,O282*$W$53,O282*$W$54) -> -0.2296992094 | P284: =IF($F$56<0,P282*$W$53,P282*$W$54) -> -0.1621565928 | Q284: =IF($H$56<0,Q282*$W$53,Q282*$W$54) -> -0.7963489647 | R284: =IF($H$56<0,R282*$W$53,R282*$W$54) -> -0.4384048378 | S284: =IF($H$56<0,S282*$W$53,S282*$W$54) -> -0.3416385297 | T284: =IF($F$56<0,T282*$W$53,T282*$W$54) -> -0.1312550513 | U284: =IF($F$56<0,U282*$W$53,U282*$W$54) -> -0.09126637278 | V284: =IF($J$56<0,V282*$W$53,V282*$W$54) -> 0.3610273742 | W284: =IF($J$56<0,W282*$W$53,W282*$W$54) -> 0.8828427914 | X284: =IF($J$56<0,X282*$W$53,X282*$W$54) -> 0.6006951511 | Y284: =IF($E$56<0,Y282*$W$53,Y282*$W$54) -> -0.07085429527 | Z284: =IF($D$56<0,Z282*$W$53,Z282*$W$54) -> -0.3141467758 | AA284: =IF($D$56<0,AA282*$W$53,AA282*$W$54) -> -0.820165074 | AB284: =IF($G$56<0,AB282*$W$53,AB282*$W$54) -> 0.9463015649 | AC284: =IF($F$56<0,AC282*$W$53,AC282*$W$54) -> -0.4307874361
B288: IF(C56<0;N57*$W$53;N57*$W$54)
